bitfinex-derivatives/quotes_ETHF0:USTF0_20260116
["timestamp","ask_amount","ask_price","bid_price","bid_amount"]
[1768577206037,0.00312303,3298.9,3296.8,40.95171]
[1768577206634,0.00312303,3298.9,3297.1,0.15169]
[1768577207144,0.13776381,3298.9,3297.1,0.15169]
[1768577207346,0.00312303,3298.9,3297.1,0.15169]
[1768577207740,0.00312303,3298.9,3297.2,0.15169]
[1768577207943,0.00312303,3298.9,3297.4,0.15168]
[1768577208138,0.00312303,3298.9,3297.5,3.439]
[1768577208541,0.00312303,3298.9,3297.6,3.44]
[1768577208733,0.00312303,3298.9,3296.9,1.517]
[1768577208935,0.13776381,3298.9,3297.0,3.439]
[1768577210135,0.28938381,3298.9,3297.0,3.439]
[1768577210540,0.13464078,3298.8,3297.0,3.439]
[1768577210741,0.13464078,3298.6,3297.0,3.439]
[1768577211042,0.28627078,3298.5,3296.7,0.00341605]
[1768577211349,0.13434645,3298.3,3296.7,0.00341605]
[1768577211654,0.28598645,3298.3,3296.7,0.00341605]
[1768577211844,0.13434645,3298.2,3296.7,0.00341605]
[1768577212649,0.13434645,3297.8,3296.0,3.443]
[1768577213643,0.13434645,3297.8,3296.0,3.4467823]
[1768577213843,0.28601645,3297.7,3296.0,0.0037823]
[1768577214042,0.13434645,3297.6,3296.0,0.0037823]
[1768577215358,0.28605645,3296.9,3294.6,0.15181]
[1768577215560,0.13434645,3296.8,3294.6,0.15181]
[1768577215859,0.13434645,3296.6,3294.4,3.439]
[1768577216151,0.13434645,3296.2,3294.4,0.00263622]
[1768577216354,0.13796097,3296.2,3294.4,0.00263622]
[1768577217359,0.13434645,3296.0,3294.4,0.00263622]
[1768577217553,0.28610645,3295.8,3294.4,0.00263622]
[1768577217851,0.13434645,3295.7,3294.4,0.00263622]
[1768577220350,0.13796097,3296.2,3294.4,0.00263622]
[1768577221051,0.13796097,3296.2,3294.5,0.15182]
[1768577222350,0.13796097,3296.2,3294.4,0.00263622]
[1768577224849,0.13434645,3296.0,3294.4,0.00263622]
[1768577225650,0.28609645,3296.0,3294.4,0.00263622]
[1768577225847,0.13434645,3295.5,3293.4,0.006073]
[1768577226058,0.28612645,3295.4,3293.4,0.006073]
[1768577226257,0.13434645,3295.3,3293.4,0.006073]
[1768577226453,0.13434645,3295.3,3293.4,40.806073]
[1768577226653,0.13434645,3295.3,3293.7,0.15185]
[1768577226851,0.13434645,3295.3,3293.7,0.15422558]
[1768577227553,0.13434645,3295.3,3293.9,0.15184]
[1768577228156,0.13434645,3295.3,3293.7,0.00237558]
[1768577231756,0.13434645,3295.3,3293.9,0.15184]
[1768577231960,0.13434645,3295.3,3294.0,3.444]
[1768577232957,0.13434645,3295.3,3294.0,3.59584]
[1768577233361,0.13434645,3296.1,3294.0,3.59584]
[1768577233863,0.13434645,3296.1,3294.2,0.15183]
[1768577234265,0.13434645,3296.1,3294.3,3.445]
[1768577235655,0.13434645,3296.1,3294.5,0.15181]
[1768577236557,0.13434645,3296.1,3294.2,3.443]
[1768577236758,0.13434645,3296.1,3294.3,40.8]
[1768577237367,0.13434645,3296.1,3294.0,3.443]
[1768577237666,0.13434645,3296.1,3294.0,3.59484]
[1768577237869,0.13434645,3296.1,3294.2,0.15183]
[1768577238066,0.13434645,3296.1,3294.3,0.15182]
[1768577239660,0.13434645,3296.1,3294.4,1.99495996]
[1768577241066,0.13434645,3296.1,3294.4,1.84313996]
[1768577241258,0.13434645,3296.1,3294.3,1.99495996]
[1768577241458,0.91056295,3296.0,3294.3,3.60282]
[1768577241770,0.14317322,3295.8,3294.3,3.60282]
[1768577242068,0.14317322,3295.8,3294.4,0.15182]
[1768577242969,0.14317322,3295.8,3294.7,1.84313996]
[1768577243266,0.00361452,3296.2,3294.7,1.84313996]
[1768577243763,0.00361452,3296.2,3295.1,0.15179]
[1768577243959,0.14317322,3296.9,3295.2,3.60478]
[1768577244157,0.14317322,3296.9,3295.3,0.15178]
[1768577244370,0.14317322,3297.5,3295.7,1.99489996]
[1768577244572,0.91347368,3297.4,3295.7,1.99489996]
[1768577244769,0.14317322,3297.5,3295.7,1.99489996]
[1768577244971,0.91358219,3297.4,3295.9,0.15175]
[1768577245167,0.14689481,3297.5,3296.0,3.453]
[1768577245471,0.9131555,3297.4,3296.0,3.453]
[1768577245672,0.14689481,3297.5,3296.0,3.453]
[1768577246271,0.14689481,3297.5,3296.0,3.60475]
[1768577246673,0.00372159,3297.5,3296.2,0.15174]
[1768577246861,0.00372159,3297.5,3296.2,0.1541934]
[1768577247267,0.00372159,3297.5,3296.5,0.15172]
[1768577249266,0.14317322,3298.0,3296.6,40.8]
[1768577249579,0.14317322,3298.0,3296.6,40.95172]
[1768577249966,0.14317322,3298.0,3296.7,3.449]
[1768577250371,0.14552925,3298.0,3296.7,5.29213996]
[1768577251175,0.00235603,3298.0,3296.7,5.44384996]
[1768577251774,0.00235603,3298.0,3296.8,0.15171]
[1768577251981,0.13822095,3298.5,3296.8,0.15171]
[1768577252678,0.13822095,3298.5,3296.8,0.39957186]
[1768577252884,0.14126331,3298.5,3296.8,0.39957186]
[1768577253178,0.14126331,3298.5,3296.7,3.449]
[1768577255983,0.14126331,3298.5,3296.8,3.462]
[1768577258087,0.14126331,3298.5,3297.0,1.84313996]
[1768577258395,0.00304236,3298.5,3297.0,1.84313996]
[1768577258984,0.00304236,3298.5,3297.5,0.15168]
[1768577259185,0.00304236,3298.5,3297.6,3.468]
[1768577260782,0.13822095,3299.0,3297.6,3.468]
[1768577261190,3.84755378,3300.5,3297.8,0.15166]
[1768577261191,0.13822095,3299.5,3297.8,0.15166]
[1768577261688,0.13822095,3299.5,3297.9,40.8]
[1768577261890,0.14040816,3299.5,3297.9,40.8]
[1768577262986,0.14040816,3299.5,3297.9,40.95166]
[1768577263587,0.14040816,3299.5,3298.0,0.15165]
[1768577266400,0.14040816,3299.5,3298.1,3.472]
[1768577266791,0.13822095,3299.4,3296.8,0.15171]
[1768577266994,0.13822095,3298.9,3296.9,2.84]
[1768577267391,0.13822095,3298.9,3297.0,40.8]
[1768577267698,0.13822095,3298.9,3297.0,40.9517]
[1768577268200,0.13822095,3298.9,3297.1,3.473]
[1768577268600,0.13822095,3298.9,3297.2,0.15169]
[1768577270807,0.13822095,3298.9,3297.3,3.48]
[1768577271003,0.13822095,3299.4,3297.6,0.15167]
[1768577272104,0.00218721,3299.5,3298.0,1.84313996]
[1768577272309,0.00218721,3299.5,3298.3,0.15164]
[1768577272803,0.00218721,3299.5,3298.4,40.8]
[1768577273597,0.13758808,3299.9,3298.4,40.8]
[1768577273803,2.68143114,3301.1,3298.4,40.8]
[1768577273804,0.13758808,3300.7,3298.7,0.15162]
[1768577274010,1.05287926,3300.6,3298.8,3.481]
[1768577274209,0.91529118,3300.5,3298.8,3.481]
[1768577274411,0.13758808,3300.6,3298.8,3.481]
[1768577274611,1.05287451,3300.5,3298.8,3.481]
[1768577274810,0.13758808,3300.5,3298.8,3.48399661]
[1768577275016,0.13758808,3300.5,3299.0,1.84313996]
[1768577275218,0.00313568,3300.6,3299.0,1.84313996]
[1768577275619,0.00313568,3300.6,3299.1,0.1516]
[1768577277612,0.14072376,3300.6,3299.1,0.1516]
[1768577278423,0.14072376,3300.6,3299.2,40.8]
[1768577278606,0.00313568,3300.6,3299.2,40.8]
[1768577280419,0.13758808,3301.1,3299.5,1.84313996]
[1768577280620,0.13758808,3301.1,3299.6,3.63558]
[1768577281509,0.14135091,3301.1,3299.6,3.63558]
[1768577282112,0.14135091,3301.1,3299.2,40.8]
[1768577282510,0.13758808,3300.9,3298.8,0.00299661]
[1768577282722,0.00376283,3301.1,3298.9,3.487]
[1768577282723,0.13758808,3300.7,3298.9,3.487]
[1768577282912,0.13758808,3300.5,3298.8,0.00299661]
[1768577283108,0.13758808,3300.3,3298.8,3.48999661]
[1768577283622,0.13758808,3301.0,3299.2,1.99473996]
[1768577283820,0.13758808,3301.0,3298.8,3.48999661]
[1768577284017,0.13758808,3300.8,3298.9,3.487]
[1768577284320,0.13758808,3300.8,3299.2,1.84313996]
[1768577284719,0.13758808,3300.8,3299.3,3.486]
[1768577285114,0.13758808,3300.8,3299.3,3.485]
[1768577286118,0.13758808,3300.8,3298.8,0.15461661]
[1768577286314,0.13758808,3300.6,3298.9,3.484]
[1768577286624,0.13758808,3300.4,3298.9,3.484]
[1768577287624,0.13758808,3300.2,3298.9,3.484]
[1768577288321,0.13758808,3300.7,3298.9,5.32713996]
[1768577288925,0.13758808,3300.7,3299.1,0.1516]
[1768577289730,0.13758808,3300.7,3299.2,40.8]
[1768577290418,0.13758808,3300.5,3299.0,5.001]
[1768577290623,0.13758808,3300.5,3299.0,3.484]
[1768577290921,0.13758808,3300.3,3298.8,0.00299661]
[1768577291622,0.13758808,3300.1,3298.8,0.00299661]
[1768577292125,0.13758808,3300.1,3297.8,0.15166]
[1768577292322,0.13758808,3299.6,3297.3,3.039]
[1768577292516,0.13758808,3298.8,3296.8,3.484]
[1768577292826,0.13758808,3298.6,3296.8,3.484]
[1768577293011,0.13758808,3298.4,3296.8,3.484]
[1768577293214,0.13758808,3298.4,3296.8,0.00272339]
[1768577293215,0.1399523,3298.4,3296.8,0.00272339]
[1768577295821,0.13758808,3298.2,3296.8,0.00272339]
[1768577296021,0.13758808,3298.0,3296.8,0.00272339]
[1768577296529,0.13758808,3297.8,3295.9,40.8]
[1768577297429,0.13758808,3297.8,3295.9,40.80329]
[1768577299235,0.13758808,3297.8,3295.9,0.00329]
[1768577300319,0.13758808,3297.6,3295.9,0.00329]
[1768577300520,0.13758808,3297.4,3295.9,0.00329]
[1768577300727,0.13758808,3296.6,3294.2,1.175]
[1768577301637,0.13268533,3295.8,3294.2,0.0038991]
[1768577301826,0.13268533,3295.5,3293.4,0.006073]
[1768577302834,0.13573989,3295.5,3293.4,0.00933112]
[1768577303134,0.00305456,3295.5,3293.5,0.00441517]
[1768577303430,0.13268533,3297.3,3294.3,0.15182]
[1768577303636,0.13268533,3297.3,3294.4,3.485]
[1768577303839,0.13268533,3296.5,3293.4,0.16485712]
[1768577304434,0.28790661,3296.5,3293.4,0.16485712]
[1768577304731,0.13268533,3295.9,3293.4,0.00933112]
[1768577305730,0.13268533,3295.8,3293.4,0.00933112]
[1768577307541,0.13268533,3295.8,3293.4,0.16119112]
[1768577308036,0.13268533,3295.8,3293.8,0.15185]
[1768577308228,0.13268533,3296.3,3294.1,0.15183]
[1768577308430,0.13268533,3296.3,3294.1,0.15732341]
[1768577308736,0.13268533,3296.3,3294.2,40.8]
[1768577309433,0.13268533,3296.3,3294.3,0.00524654]
[1768577309627,0.13268533,3296.3,3294.3,0.15706654]
[1768577309829,0.00349128,3296.5,3294.6,0.15739555]
[1768577311442,0.13945273,3296.5,3294.6,0.15181]
[1768577311630,0.13945273,3296.5,3294.2,44.286]
[1768577312937,0.13945273,3296.5,3294.3,0.00573981]
[1768577313127,0.00349128,3296.5,3294.8,0.1518]
[1768577313331,0.13945273,3296.5,3294.8,0.1518]
[1768577313937,0.00349128,3296.5,3294.8,0.1518]
[1768577314339,0.00349128,3296.5,3294.9,0.15735136]
[1768577315432,0.00349128,3296.5,3294.9,0.00555136]
[1768577315646,0.00349128,3296.5,3295.2,0.15733136]
[1768577315845,0.00349128,3296.5,3295.2,0.15178]
[1768577316045,0.00349128,3296.5,3294.7,0.005119]
[1768577316241,0.13945273,3296.5,3294.8,3.487]
[1768577316542,0.13945273,3296.5,3294.4,3.486]
[1768577316750,0.13945273,3296.5,3294.2,44.286]
[1768577316939,0.13945273,3296.5,3294.2,40.8]
[1768577317337,0.13945273,3296.5,3294.1,3.486]
[1768577317542,0.29118273,3296.5,3294.1,3.486]
[1768577317743,0.13596145,3296.3,3294.2,40.8]
[1768577317943,0.13596145,3296.3,3294.1,3.486]
[1768577318342,0.13596145,3296.3,3294.1,44.286]
[1768577318651,0.28769145,3296.3,3294.1,44.286]
[1768577318853,0.13596145,3296.0,3293.8,0.15185]
[1768577319448,0.13596145,3296.0,3293.8,40.95185]
[1768577320350,0.13596145,3296.0,3293.8,40.8]
[1768577320539,0.13596145,3295.7,3293.8,40.8]
[1768577320745,0.13596145,3295.5,3293.6,2.95]
[1768577321147,0.13596145,3295.5,3293.6,43.75]
[1768577321344,0.00349128,3296.5,3293.6,43.75]
[1768577321345,0.13596145,3296.1,3293.7,0.15677761]
[1768577321546,1.04137855,3296.0,3293.7,0.15677761]
[1768577321753,0.9054171,3295.9,3293.7,0.15677761]
[1768577321941,0.9054171,3295.8,3293.7,0.15677761]
[1768577322142,0.9054171,3295.7,3293.7,0.15677761]
[1768577322342,0.13596145,3296.0,3293.7,0.15677761]
[1768577322343,0.9054171,3295.6,3294.0,0.15184]
[1768577322550,0.13596145,3295.8,3294.0,0.15184]
[1768577322746,0.90679441,3295.7,3294.0,0.15184]
[1768577322946,0.90679441,3295.6,3294.0,0.15184]
[1768577323153,0.13596145,3295.8,3294.1,3.494]
[1768577323355,0.90738397,3295.7,3294.1,3.494]
[1768577323853,0.13596145,3296.1,3293.6,40.8]
[1768577324054,0.13596145,3295.9,3293.7,3.496]
[1768577324248,0.13596145,3295.7,3293.7,3.496]
[1768577324449,0.90739863,3295.6,3293.7,3.496]
[1768577324651,0.90739863,3295.6,3293.8,0.00456831]
[1768577324851,0.13596145,3296.2,3294.0,0.00456831]
[1768577325050,0.90804419,3296.1,3294.1,0.15183]
[1768577325254,0.90804419,3296.0,3294.1,0.15183]
[1768577325552,0.90804419,3295.9,3294.3,0.15182]
[1768577325748,0.00349128,3296.5,3294.3,0.15632364]
[1768577325952,0.90889794,3296.4,3294.3,0.15632364]
[1768577326148,0.90889794,3296.4,3293.7,5.33639522]
[1768577326149,0.90889794,3296.3,3294.5,0.15181]
[1768577326349,0.90889794,3296.2,3294.6,3.64881]
[1768577326551,0.00349128,3296.5,3294.6,3.64881]
[1768577326748,0.90954631,3296.4,3294.7,40.8]
[1768577327046,0.90954631,3296.3,3294.7,40.95631364]
[1768577327250,0.90954631,3296.2,3294.8,0.15630364]
[1768577327457,0.00349128,3296.5,3294.9,3.497]
[1768577327653,0.90973782,3296.4,3294.9,3.497]
[1768577327954,0.90973782,3296.3,3294.9,3.497]
[1768577328256,0.00349128,3296.5,3295.1,0.15179]
[1768577328859,0.00349128,3296.5,3295.2,0.15178]
[1768577329660,0.00349128,3296.5,3294.9,6.536]
[1768577329661,0.00349128,3296.5,3294.7,40.8]
[1768577329860,0.00349128,3296.5,3294.8,6.536]
[1768577330057,0.00349128,3296.5,3294.7,40.8]
[1768577330058,0.00349128,3296.5,3294.9,0.1518]
[1768577330257,0.13945273,3296.5,3295.0,3.501]
[1768577330453,0.13945273,3296.5,3294.9,0.1518]
[1768577330650,0.13945273,3296.5,3295.1,3.501]
[1768577330854,0.13945273,3296.5,3295.0,3.501]
[1768577331557,0.13945273,3296.5,3294.4,3.036]
[1768577331862,0.14108198,3295.7,3293.6,3.501]
[1768577332063,0.14108198,3295.5,3293.6,3.501]
[1768577332263,0.14108198,3295.1,3293.0,40.8]
[1768577332465,0.14108198,3295.1,3292.7,3.501]
[1768577332960,0.14108198,3294.8,3292.8,40.8]
[1768577333956,0.1518,3294.9,3292.6,1.24540752]
[1768577333957,0.14108198,3294.5,3292.6,1.24540752]
[1768577335062,0.14108198,3294.5,3292.6,1.24782251]
[1768577335366,0.14108198,3294.4,3292.6,1.24782251]
[1768577335559,0.14108198,3294.3,3292.6,1.24782251]
[1768577336557,0.14108198,3294.2,3292.6,1.24782251]
[1768577337259,0.14108198,3294.1,3292.6,1.24782251]
[1768577337459,0.14386339,3294.1,3292.6,1.24782251]
[1768577337871,0.14108198,3293.7,3290.9,0.15198]
[1768577338065,0.14108198,3293.6,3291.0,0.45]
[1768577338367,0.14108198,3293.5,3291.1,40.8]
[1768577338768,0.14108198,3293.4,3291.1,40.8]
[1768577338960,0.14108198,3293.4,3291.1,40.80364789]
[1768577339355,0.14108198,3293.4,3291.1,0.00364789]
[1768577339763,0.29295198,3293.4,3291.1,0.00364789]
[1768577339965,0.14108198,3293.3,3291.1,0.00364789]
[1768577340160,0.90481176,3293.2,3291.1,0.00364789]
[1768577340460,0.14108198,3293.3,3291.6,0.15195]
[1768577340660,0.00278141,3294.1,3291.7,0.15194]
[1768577340661,0.14108198,3294.0,3291.7,0.15194]
[1768577340855,1.04561151,3293.9,3291.7,0.15194]
[1768577341072,0.14108198,3293.7,3291.7,0.15194]
[1768577341264,0.14108198,3293.7,3291.6,1.198]
[1768577341570,0.14108198,3293.0,3291.1,0.00364789]
[1768577341767,0.14108198,3292.8,3291.1,0.00364789]
[1768577341967,0.14108198,3292.6,3291.1,0.00364789]
[1768577342864,0.14108198,3293.1,3291.1,0.00364789]
[1768577343767,0.14108198,3292.9,3291.1,0.00364789]
[1768577344364,0.14108198,3292.9,3289.9,0.20491095]
[1768577344564,0.14108198,3292.7,3289.9,0.15203]
[1768577344764,0.14108198,3292.5,3289.9,0.15203]
[1768577345182,0.14108198,3292.3,3289.4,0.05896694]
[1768577345360,0.14108198,3292.1,3289.4,3.04644763]
[1768577345769,0.14108198,3291.9,3289.5,40.8]
[1768577346076,0.14108198,3291.7,3289.4,3.04644763]
[1768577346260,0.14462634,3291.7,3289.4,3.04644763]
[1768577346967,0.14462634,3291.7,3289.4,0.00844763]
[1768577347168,0.14462634,3291.7,3289.5,0.15204]
[1768577347473,0.14462634,3291.7,3289.8,0.15203]
[1768577347769,0.14462634,3291.7,3290.2,0.15201]
[1768577347971,0.00354436,3291.7,3290.2,0.15201]
[1768577348477,0.00354436,3291.7,3290.4,0.152]
[1768577349468,0.00354436,3291.7,3290.6,0.15199]
[1768577350266,0.00354436,3291.7,3290.7,0.15199]
[1768577350464,0.14108198,3292.9,3290.9,0.15198]
[1768577351377,0.14329536,3292.9,3290.9,0.15198]
[1768577351882,0.14329536,3292.9,3290.5,3.5]
[1768577352064,0.14329536,3292.9,3291.2,0.15196]
[1768577352267,0.14329536,3292.9,3291.4,0.15196]
[1768577352570,0.14329536,3292.9,3291.5,0.15195]
[1768577352970,0.14329536,3292.9,3291.1,3.039]
[1768577353771,0.14329536,3292.9,3290.9,0.15198]
[1768577354164,0.14329536,3292.9,3290.7,6.536]
[1768577355674,0.14329536,3292.9,3290.6,40.8]
[1768577357467,1.99057289,3292.9,3290.6,40.8]
[1768577357668,0.14108198,3292.8,3290.6,40.8]
[1768577358179,0.14108198,3292.8,3290.6,40.952]
[1768577360080,0.14108198,3291.4,3289.5,0.15205]
[1768577360476,0.14108198,3291.4,3289.6,40.8]
[1768577360678,0.14108198,3291.4,3289.7,0.15204]
[1768577361281,0.14108198,3291.4,3289.0,0.15207]
[1768577361487,0.1318347,3290.9,3288.8,3.039]
[1768577361777,0.1318347,3290.7,3288.8,43.839]
[1768577362171,0.1318347,3290.7,3288.8,3.19108]
[1768577362775,0.1318347,3291.2,3289.5,2.458]
[1768577363678,0.1318347,3291.2,3289.8,0.15203]
[1768577363882,0.1318347,3291.7,3289.8,0.15203]
[1768577364188,1.03866034,3291.6,3289.8,0.15203]
[1768577364380,0.1318347,3291.4,3289.6,3.509]
[1768577365181,0.1318347,3291.4,3289.7,0.15204]
[1768577367688,0.1318347,3291.4,3289.9,0.15203]
[1768577367882,0.1318347,3292.1,3290.1,0.15202]
[1768577368081,1.03981811,3292.0,3290.1,0.15202]
[1768577368288,0.90798341,3291.9,3290.2,40.8]
[1768577368486,1.03981811,3291.9,3290.2,40.8]
[1768577368686,0.13396388,3291.7,3290.2,40.8]
[1768577369782,0.13396388,3291.7,3290.1,0.15202]
[1768577369977,0.13396388,3291.5,3289.6,3.509]
[1768577370179,2.14855378,3292.2,3289.6,3.509]
[1768577370180,0.13396388,3291.3,3289.6,3.509]
[1768577370378,0.13396388,3291.3,3289.7,40.8]
[1768577370686,0.13396388,3291.3,3289.7,40.95204]
[1768577371500,0.13396388,3291.3,3289.7,42.79931753]
[1768577372086,0.13396388,3291.3,3289.7,40.8]
[1768577372286,0.13396388,3291.1,3289.4,0.00844763]
[1768577372793,0.13396388,3291.1,3289.5,40.8]
[1768577373087,0.13396388,3290.9,3289.4,0.00844763]
[1768577373687,0.13396388,3290.9,3289.4,40.80844763]
[1768577374291,0.13396388,3290.9,3289.4,42.65572516]
[1768577374490,3.99583131,3291.9,3289.4,42.65572516]
[1768577374491,0.13396388,3291.4,3289.4,42.65572516]
[1768577374691,0.13396388,3291.4,3289.8,0.15203]
[1768577375094,0.13396388,3291.4,3289.4,1.85572516]
[1768577375386,0.13396388,3291.2,3289.4,0.00844763]
[1768577375591,0.13396388,3291.0,3289.4,0.00844763]
[1768577375791,1.84727753,3290.7,3289.4,0.00844763]
[1768577375994,0.13396388,3290.5,3288.8,0.15208]
[1768577376294,0.13396388,3290.3,3288.8,40.95208]
[1768577376497,0.13396388,3290.3,3288.8,40.8]
[1768577376700,0.13396388,3290.3,3288.9,0.15207]
[1768577377193,0.1366827,3290.3,3288.9,0.15460116]
[1768577378696,0.1366827,3290.3,3289.4,0.15205]
[1768577378901,0.13396388,3290.8,3289.4,0.15205]
[1768577379593,0.13396388,3290.8,3289.7,0.15204]
[1768577379799,0.00288564,3290.8,3289.7,0.15204]
[1768577380385,0.00288564,3290.8,3289.8,0.15203]
[1768577380592,0.00288564,3290.8,3289.5,44.073]
[1768577380593,0.13396388,3291.7,3290.0,0.15202]
[1768577381598,0.13676717,3291.7,3290.0,0.15202]
[1768577383309,0.13396388,3291.5,3290.0,0.15202]
[1768577383607,0.90797006,3291.4,3290.0,0.15202]
[1768577383806,0.13396388,3291.3,3288.9,0.00253116]
[1768577384002,0.00280329,3291.7,3289.5,0.15204]
[1768577384003,0.13396388,3291.1,3289.5,0.15204]
[1768577384203,0.13396388,3290.9,3289.5,0.15204]
[1768577384404,0.13396388,3290.9,3289.3,1.84727753]
[1768577384806,0.13396388,3290.9,3289.9,0.15203]
[1768577385114,0.13396388,3291.6,3290.0,3.516]
[1768577385315,0.90877814,3291.5,3290.0,3.516]
[1768577385612,0.13396388,3291.4,3290.0,3.516]
[1768577385813,0.13396388,3291.4,3290.0,44.316]
[1768577386010,0.13396388,3291.4,3290.0,40.8]
[1768577386216,0.13396388,3291.2,3290.0,40.8]
[1768577386404,0.13396388,3291.2,3289.7,3.515]
[1768577387303,0.13396388,3291.0,3289.7,3.515]
[1768577387505,0.13396388,3291.0,3289.4,3.04]
[1768577387703,0.13396388,3290.8,3289.4,3.04]
[1768577387909,0.13396388,3290.8,3289.4,43.84]
[1768577388407,0.13396388,3290.8,3289.4,3.04]
[1768577389209,0.13396388,3290.8,3289.5,3.516]
[1768577389809,0.13396388,3290.8,3289.5,3.66804]
[1768577390706,0.13396388,3290.8,3289.3,3.518]
[1768577391409,0.13396388,3290.8,3289.2,40.95206]
[1768577391614,0.13396388,3290.8,3288.9,0.00253116]
[1768577391615,0.14181782,3290.6,3288.9,0.00253116]
[1768577391814,0.14181782,3290.4,3288.9,0.00253116]
[1768577393615,0.14181782,3290.2,3288.3,0.1521]
[1768577394113,0.14181782,3289.9,3288.1,3.517]
[1768577394316,0.14181782,3289.7,3288.1,3.517]
[1768577395015,0.14181782,3289.7,3288.1,3.52084689]
[1768577395206,0.14181782,3289.7,3288.4,0.1521]
[1768577395408,0.14181782,3289.7,3288.4,3.6681]
[1768577395621,0.14181782,3289.7,3288.2,3.515]
[1768577395813,0.14181782,3289.7,3288.3,40.8]
[1768577396516,0.14181782,3289.7,3288.4,3.516]
[1768577397518,0.14181782,3289.7,3288.3,40.8]
[1768577397824,0.14181782,3290.6,3288.4,6.559]
[1768577398014,0.14181782,3290.4,3288.4,6.559]
[1768577398611,0.14181782,3290.4,3288.9,0.15207]
[1768577398811,0.14181782,3291.2,3289.1,0.15206]
[1768577399022,0.14181782,3291.0,3289.1,0.15206]
[1768577400125,0.14181782,3291.0,3289.2,6.561]
[1768577400318,1.84727753,3290.8,3288.3,40.8]
[1768577400526,0.14181782,3290.6,3288.5,3.041]
[1768577400727,0.14181782,3290.6,3288.7,0.15208]
[1768577400920,0.14181782,3290.2,3288.3,40.8]
[1768577401225,0.14181782,3290.0,3288.4,3.52]
[1768577401430,0.14181782,3290.0,3288.4,5.36727753]
[1768577401724,0.14181782,3291.1,3289.1,0.15206]
[1768577402032,0.14181782,3291.1,3288.5,3.039]
[1768577402033,0.14181782,3290.9,3289.3,0.15206]
[1768577402224,0.14181782,3290.9,3289.5,0.15205]
[1768577402527,0.14181782,3290.9,3289.6,43.841]
[1768577402824,0.14181782,3290.9,3289.6,40.8]
[1768577403024,0.14181782,3290.9,3289.7,6.563]
[1768577403220,0.14181782,3290.9,3289.6,40.8]
[1768577403426,0.14181782,3290.9,3289.7,3.524]
[1768577403940,0.14181782,3291.6,3289.7,3.524]
[1768577404228,0.14181782,3291.4,3289.7,3.67604]
[1768577404414,0.14181782,3291.3,3289.8,3.524]
[1768577404821,0.14181782,3291.3,3289.9,3.525]
[1768577405324,0.14181782,3291.3,3289.5,40.8]
[1768577405524,0.14181782,3291.2,3289.6,3.525]
[1768577406227,0.14181782,3291.2,3289.7,40.8]
[1768577406725,0.14181782,3291.2,3289.0,0.15207]
[1768577407032,0.14181782,3291.0,3289.1,3.526]
[1768577407228,0.14181782,3291.0,3289.4,0.15205]
[1768577407926,0.14181782,3291.0,3289.5,3.526]
[1768577408328,0.14181782,3290.8,3288.8,3.041]
[1768577408528,0.14181782,3290.8,3288.9,3.527]
[1768577408729,0.14181782,3291.5,3290.0,1.84727753]
[1768577408932,0.14181782,3291.5,3290.1,6.72002]
[1768577409437,0.14181782,3291.5,3290.2,3.527]
[1768577409626,0.14181782,3291.5,3290.1,3.19302]
[1768577409627,0.14181782,3291.5,3290.3,3.526]
[1768577410133,0.14181782,3291.5,3290.2,3.526]
[1768577410638,0.14181782,3291.5,3289.4,3.19305]
[1768577410936,0.14181782,3291.3,3289.5,3.525]
[1768577411233,0.14181782,3291.1,3289.4,3.67705]
[1768577411837,0.14181782,3291.1,3289.7,0.15203]
[1768577413037,0.14181782,3291.1,3289.8,3.525]
[1768577413935,0.14181782,3291.1,3289.5,3.524]
[1768577414143,0.14181782,3291.1,3289.4,3.524]
[1768577414435,0.14181782,3291.1,3289.2,0.15206]
[1768577414642,0.14181782,3291.1,3289.3,3.525]
[1768577415240,0.14181782,3290.9,3289.3,3.526]
[1768577416033,0.14181782,3290.9,3289.2,0.15206]
[1768577416343,0.14181782,3290.9,3289.3,3.528]
[1768577417449,0.14181782,3290.9,3289.2,0.15206]
[1768577417637,0.14181782,3290.9,3289.2,3.532]
[1768577418146,0.14181782,3290.7,3289.1,3.532]
[1768577418648,0.14181782,3290.7,3288.8,0.15208]
[1768577418840,0.14181782,3290.7,3289.3,0.15205]
[1768577419347,0.14181782,3290.7,3289.4,3.533]
[1768577422049,0.14181782,3290.7,3289.2,3.534]
[1768577422550,0.14181782,3290.7,3289.1,3.68606]
[1768577422745,0.13455303,3290.2,3288.1,0.00384689]
[1768577422938,0.13455303,3290.0,3288.3,0.1521]
[1768577423145,0.13455303,3290.0,3288.3,40.9521]
[1768577423344,0.13455303,3290.0,3288.4,0.1521]
[1768577423638,0.13455303,3290.8,3288.6,0.15209]
[1768577423844,0.13455303,3290.6,3288.7,0.15208]
[1768577424049,0.90709805,3290.5,3288.8,3.536]
[1768577424248,0.13455303,3290.4,3288.8,3.536]
[1768577424742,0.13455303,3290.4,3288.9,3.537]
[1768577425143,0.13455303,3290.4,3288.7,0.15208]
[1768577425341,0.13455303,3290.2,3288.3,40.8]
[1768577425547,0.13455303,3290.0,3288.4,3.537]
[1768577425749,0.13455303,3289.8,3288.1,0.00384689]
[1768577426241,0.13455303,3289.6,3288.1,0.00384689]
[1768577427949,0.13455303,3290.2,3288.8,0.15208]
[1768577428144,0.13455303,3290.2,3288.9,3.538]
[1768577428547,0.13455303,3290.2,3288.6,3.538]
[1768577428744,0.13455303,3290.2,3288.6,3.537]
[1768577428940,0.28657303,3290.2,3288.1,0.00384689]
[1768577429142,0.13581381,3290.0,3288.1,3.54084689]
[1768577429339,0.13581381,3289.8,3288.1,3.54084689]
[1768577429948,0.13581381,3290.4,3288.1,3.54084689]
[1768577430154,0.13581381,3290.4,3288.7,0.15208]
[1768577430654,0.13581381,3290.4,3288.8,0.15208]
[1768577432654,0.13581381,3290.4,3288.9,3.534]
[1768577433655,0.13581381,3290.9,3289.3,0.15206]
[1768577433953,0.13581381,3290.9,3289.3,40.95206]
[1768577434254,0.13581381,3291.6,3289.3,40.8]
[1768577434445,0.13581381,3291.4,3289.5,0.15204]
[1768577434646,0.00280329,3291.7,3289.5,1.84944323]
[1768577434848,0.00280329,3291.7,3290.2,0.15201]
[1768577435048,0.00280329,3291.7,3290.3,3.68501]